Cogmind - Beta 12 @@@ ROGUE MODE // 2023.04.15 @ 20:23:15 Player: Inkie Result: Self-destructed Performance ------------- Evolutions (7) 3500 Regions Visited (22) 4400 Robots Destroyed (155) 775 Value Destroyed (5279) 5279 Prototype IDs (36) 720 Alien Tech Used (0) 0 Bonus (4093) 4093 TOTAL SCORE: 18767 Bonus ------- High Alert Combat Kills 1221 Follower Combat Kills 2471 Network Hubs Disabled 200 Met Data Miner 300 Met Imprinter 300 Was Imprinted 300 Met Zhirov 300 Read Decrypted Archives 300 Friendly Fire -1299 Cogmind --------- Core Integrity 1195/1300 Matter 270/300 Energy 370/370 System Corruption 2% Temperature Cool (0) Movement Hovering (48) Location -3/Research Parts ------- > --- POWER (2) -------- DM-Momentum Reactor > --- PROPULSION (7) --- Hovering Gyrokinetic-FPA Exoskeleton > --- UTILITY (9) ------ Armored Scrap Engine Large Storage Unit Advanced Transmission Jammer Improved Cloaking Device Light Regenerative Plating Hacking Suite Hacking Suite > --- WEAPON (3) ------- RU-N14's Throwing Claymores Shotgun Thermal Penetrator Construct/C > --- INVENTORY (15) --- Advanced Cooling System Advanced Cooling System Advanced Weight Redist. System Advanced Terrain Scanner Advanced ECM Suite Centrium Medium Armor Plating Point Defense Array Authchip [Weapon] Trap Extractor (4/4 Shock) Magnetic Acceleration Cannon RU-N14's Throwing Claymores (10) CR-A16's Pointy Stick Peak State ------------ > --- POWER ------------ DM-Momentum Reactor > --- PROPULSION ------- Hovering Gyrokinetic-FPA Exoskeleton > --- UTILITY ---------- Armored Scrap Engine Large Storage Unit Matter Filter Advanced Transmission Jammer Improved Reaction Control System Improved Cloaking Device Light Regenerative Plating Remote Force Field > --- WEAPON ----------- RU-N14's Throwing Claymores Shotgun Thermal Penetrator Construct/C > --- INVENTORY -------- Advanced Cooling System Advanced Cooling System Advanced Weight Redist. System Advanced Terrain Scanner Advanced ECM Suite Centrium Medium Armor Plating Point Defense Array Hacking Suite Hacking Suite Authchip [Weapon] Trap Extractor Magnetic Acceleration Cannon RU-N14's Throwing Claymores RU-N14's Throwing Claymores CR-A16's Pointy Stick [Rating: 138] Favorites ----------- Power Constructs Engine Ion Engine Power Core Fusion Compressor Reactor Constructs Propulsion Constructs Treads Light Treads Hover Unit Constructs Flight Unit Xenon Bombardment Thruster Utility Large Storage Unit Device Armored Scrap Engine Storage Large Storage Unit Processor Advanced Signal Interpreter Hackware Improved Hacking Suite Protection Light Regenerative Plating Weapon Constructs Energy Gun EM Pulse Gun Energy Cannon Particle Cannon Ballistic Gun Light Assault Rifle Ballistic Cannon Constructs Launcher Long-range Missile Launcher Special Weapon RU-N14's Throwing Claymores Impact Weapon Flail Slashing Weapon Phasing Sabre Piercing Weapon CR-A16's Pointy Stick Special Melee Weapon Datajack Build | -11 -10 -10 -9 -9 -9 -7 -7 -7 -7 -6 -6 -6 -6 -6 -5 -5 -5 -5 -5 -5 -4 -3 ------- Run | Jun Mat Min Mat Sto Rec Fac Low Low Dat Pro Fac Low Low Zio Pro Fac Ext Cet Arc Hub Fac Res Slots Evolved 14 | . . . 2 . . 4 . . . . 2 . . . . 2 . . . . 2 2 Power 1 | . . . . . . . . . . . . . . . . . . . . . 1 . Propulsion 5 | . . . . . . 1 . . . . 2 . . . . 1 . . . . . 1 Utility 7 | . . . 2 . . 3 . . . . . . . . . 1 . . . . 1 . Weapon 1 | . . . . . . . . . . . . . . . . . . . . . . 1 Parts Attached 138 | 8 . 1 5 27 2 13 1 5 . 2 21 13 . 2 7 4 2 7 . . 7 11 Power 4 | 2 . . . . . . . . . . 1 1 . . . . . . . . . . Engine 3 | 2 . . . . . . . . . . 1 . . . . . . . . . . . Core 1 | . . . . . . . . . . . . 1 . . . . . . . . . . Reactor . | . . . . . . . . . . . . . . . . . . . . . . . Propulsion 14 | 2 . . . 7 1 1 . . . . 2 . . . . 1 . . . . . . Treads 10 | 2 . . . 7 1 . . . . . . . . . . . . . . . . . Leg . | . . . . . . . . . . . . . . . . . . . . . . . Wheel . | . . . . . . . . . . . . . . . . . . . . . . . Hover 3 | . . . . . . . . . . . 2 . . . . 1 . . . . . . Flight 1 | . . . . . . 1 . . . . . . . . . . . . . . . . Utility 70 | 1 . . 2 8 1 7 . 5 . 1 13 6 . 1 3 . 1 7 . . 6 8 Device 45 | . . . 1 6 1 4 . 4 . 1 9 5 . . 3 . . 2 . . 5 4 Storage 4 | 1 . . . 1 . . . . . . . . . . . . . 1 . . . 1 Processor 4 | . . . . . . 2 . . . . 2 . . . . . . . . . . . Hackware 6 | . . . . . . . . . . . 2 . . . . . . . . . 1 3 Protection 11 | . . . 1 1 . 1 . 1 . . . 1 . 1 . . 1 4 . . . . Artifact . | . . . . . . . . . . . . . . . . . . . . . . . Weapon 50 | 3 . 1 3 12 . 5 1 . . 1 5 6 . 1 4 3 1 . . . 1 3 Energy Gun 6 | 1 . . . 2 . . 1 . . . 1 1 . . . . . . . . . . Energy Cannon 9 | . . . 2 6 . . . . . 1 . . . . . . . . . . . . Ballistic Gun 4 | 2 . 1 1 . . . . . . . . . . . . . . . . . . . Ballistic Cannon 10 | . . . . . . . . . . . 4 4 . . 1 1 . . . . . . Launcher 7 | . . . . 2 . 3 . . . . . . . . 2 . . . . . . . Special Weapon 5 | . . . . . . . . . . . . . . . 1 1 . . . . . 3 Impact Weapon 3 | . . . . . . 2 . . . . . 1 . . . . . . . . . . Slashing Weapon 1 | . . . . . . . . . . . . . . 1 . . . . . . . . Piercing Weapon 3 | . . . . . . . . . . . . . . . . 1 1 . . . 1 . Special Melee Weapon 2 | . . . . 2 . . . . . . . . . . . . . . . . . . Unidentified Prototypes 8 | . . . . 3 . . . . . . . . . . 1 . . 4 . . . . Corrupted Parts 2 | . . . . . . . . . . . 1 . . . . . . . . . 1 . System Corruption 3 | . . . . . . . . . . . 1 . . . . . . . . . 2 . Parts Lost 39 | . . 2 . 3 1 11 2 2 . 2 3 . 2 . 3 2 . . . 1 1 4 Power 7 | . . . . . 1 2 . 1 . . . . 1 . 1 . . . . . . 1 Propulsion 7 | . . . . . . 2 1 . . . 1 . . . 1 1 . . . 1 . . Utility 16 | . . . . 3 . 4 1 1 . 1 1 . 1 . . . . . . . 1 3 Weapon 9 | . . 2 . . . 3 . . . 1 1 . . . 1 1 . . . . . . Highest Loss Streak 4 | . . 1 . 1 1 3 4 1 . 1 2 . 1 . 3 2 . . . 1 1 4 To Critical Strikes . | . . . . . . . . . . . . . . . . . . . . . . . Average Slot Usage (%) 65 | . 85 83 63 94 75 58 62 63 69 66 60 61 57 60 62 55 53 58 64 64 59 53 Engine 3 | . 14 14 11 11 . . . . . . 5 . . . . . 2 5 5 5 2 . Core 1 | . . . . . . 4 6 7 7 5 . 5 6 . 1 5 . . . . . . Reactor 1 | . . . . . . . . . . . . . . 6 3 . 1 . . . 2 4 Treads 5 | . 28 28 22 22 18 1 . . . . . . . . . . . . . . . . Hover 3 | . . . . . . . . . . . 5 6 6 6 6 5 5 5 5 5 4 3 Flight 1 | . . . . . . 3 7 6 7 7 1 . . . . . . . . . . . Device 16 | . . . 2 24 22 20 17 16 23 21 19 18 17 13 11 11 11 11 11 11 13 18 Storage 7 | . 14 14 11 11 11 7 7 7 7 7 6 6 6 6 6 5 5 5 5 5 5 4 Processor 6 | . . . . . . . 7 7 7 7 12 13 13 13 13 11 11 11 11 11 8 . Protection 3 | . . . 1 3 . 5 . 4 7 7 . 1 . 1 6 5 6 8 11 11 10 7 Energy Gun 3 | . 14 13 . . 9 2 6 7 7 2 1 . . . 5 . . . 5 5 5 1 Energy Cannon 4 | . . . 6 20 11 3 . . . 5 1 4 6 6 . . . . . . . . Naked Turns . | . . . . . . . . . . . . . . . . . . . . . . . Heaviest Build 76 | 14 14 14 22 39 37 56 35 45 43 53 48 41 32 44 49 47 45 50 50 50 65 76 Greatest Support 216 | 40 40 40 40 40 40 60 45 45 39 39 56 33 33 33 33 33 85 85 85 85 216 216 Greatest Overweight (x) 4 | . . . . . 1 1 1 1 1 1 4 1 . 1 2 1 1 . . . . . Average Overweight (x) . | . . . . . . . . . 1 . . . . . 1 1 . . . . . . Largest Inventory Capacity 15 | 8 8 8 8 15 15 15 15 15 15 15 15 15 15 15 15 15 15 15 15 15 15 15 Average Capacity 14 | 6 8 8 8 13 15 15 15 15 15 15 15 15 15 15 15 15 15 15 15 15 15 15 Most Carried 15 | 2 4 4 8 15 15 15 15 15 15 15 15 15 15 15 15 13 14 15 15 15 15 15 Average Carried 13 | 1 3 3 4 12 14 14 13 14 15 14 14 14 14 14 14 12 13 14 15 15 14 14 Final Capacity 15 | 8 8 8 8 15 15 15 15 15 15 15 15 15 15 15 15 15 15 15 15 15 15 15 Final Carried 15 | 2 4 3 8 15 15 14 14 15 15 15 15 15 15 15 13 13 14 15 15 15 15 12 Scrap Engine Consumption 161 | . . . . . 17 29 9 11 . 3 26 3 . . 4 1 19 6 . . 24 9 Constructs Created 13 | . . . . . 2 3 2 1 . 1 . 1 1 . 1 . . 1 . . . . Constructs Modified 51 | . . . . . 1 8 5 4 . . 6 1 . 1 2 . 7 1 1 . 8 6 Class Distribution -------------------- 42% | Construct 37% | Mutant 6% | Scavenger-Mutant 6% | Commander-Construct 3% | Commander-Mutant Dominant Class ---------------- Mutant | -10/Materials Mutant | -10/Mines Mutant | -9/Materials Scavenger-Mutant | -9/Storage Mutant | -9/Recycling Construct | -7/Factory Mutant | -7/Lower Caves Construct | -7/Lower Caves Construct | -7/Data Miner Construct | -6/Proximity Caves Mutant | -6/Factory Construct | -6/Lower Caves Construct | -6/Lower Caves Construct | -6/Zion Construct | -5/Proximity Caves Mutant | -5/Factory Commander-Construct | -5/Extension Commander-Construct | -5/Cetus Commander-Construct | -5/Archives Construct | -5/Hub_04(d) Construct | -4/Factory Construct | -3/Research Resources | -11 -10 -10 -9 -9 -9 -7 -7 -7 -7 -6 -6 -6 -6 -6 -5 -5 -5 -5 -5 -5 -4 -3 ----------- Run | Jun Mat Min Mat Sto Rec Fac Low Low Dat Pro Fac Low Low Zio Pro Fac Ext Cet Arc Hub Fac Res Matter Collected 2971 | 241 78 41 51 258 105 200 297 62 . 36 276 375 179 94 295 63 55 70 . . 106 89 Remotely . | . . . . . . . . . . . . . . . . . . . . . . . Salvage Created 4984 | . 246 102 51 906 596 725 146 127 . 154 331 23 155 . 78 65 20 24 . 235 114 886 Parts 265 | . 24 7 3 55 19 47 12 6 . 7 14 . 1 . 4 6 3 1 . 10 6 40 Haulers Intercepted 7 | . . . . 5 . . . . . . 1 . . . . . . . . 1 . . Recyclers Shooed 5 | . . . . 1 1 1 . . . . 1 . . . . . 1 . . . . . Parts Field Recycled . | . . . . . . . . . . . . . . . . . . . . . . . Retrieved Matter . | . . . . . . . . . . . . . . . . . . . . . . . Parts Self-Destructed 27 | . . . . . . . 8 1 . 9 . . 1 . 8 . . . . . . . Prevented 8 | . . . . . . . . 3 . 1 . . 1 . 3 . . . . . . . Kills | -11 -10 -10 -9 -9 -9 -7 -7 -7 -7 -6 -6 -6 -6 -6 -5 -5 -5 -5 -5 -5 -4 -3 ------- Run | Jun Mat Min Mat Sto Rec Fac Low Low Dat Pro Fac Low Low Zio Pro Fac Ext Cet Arc Hub Fac Res Combat Hostiles Destroyed 108 | . 6 2 1 13 4 22 7 3 . 3 6 1 . . 5 8 . 1 . . 2 24 Melee 5 | . . . . . . . 3 . . . . . . . . . . . . . 2 . Guns 23 | . 5 2 1 . . 2 2 2 . 2 4 . . . 1 . . 1 . . . 1 Cannons 24 | . . . . 10 4 2 2 . . . 1 1 . . . 1 . . . . . 3 AOE 54 | . 1 . . 3 . 18 . . . . 1 . . . 4 7 . . . . . 20 Classes Destroyed 18 | . 5 . 1 4 . 2 . 1 . 1 1 . . . 1 . . . . 1 . 1 Worker 9 | . 1 . . . . 1 . . . . 1 . . . . 1 . . . 3 . 2 Builder 7 | . 1 . . 1 . 3 . . . . . . . . . . . . . . . 2 Tunneler 2 | . . . . . . . . . . . 1 . . . . 1 . . . . . . Hauler 8 | . . . . 5 . 1 . . . . 1 . . . . . . . . 1 . . Recycler 7 | . . . . 1 5 . . . . . . . . . . . . . . . . 1 Mechanic 1 | . . . . 1 . . . . . . . . . . . . . . . . . . Operator 7 | . 1 . . 2 . . . . . . 1 . . . . . 1 . . 1 . 1 Drone 2 | . . . . . . . . . . . . . . . 2 . . . . . . . Watcher 3 | . . . . 1 . . . . . . . . . . . . . . . . . 2 Swarmer 41 | . 3 . . 3 . 4 6 2 . 2 5 . . . . 5 . 1 . . . 10 Grunt 36 | . 3 2 . 4 1 12 . . . . . . . . 2 2 . . . . . 10 Brawler 4 | . . . . . . 3 . . . . . . . . 1 . . . . . . . Duelist 1 | . . . . . . . . . . . . . . . . . . . . . . 1 Sentry 15 | . . . 1 7 3 1 . 1 . . . 1 . . . 1 . . . . . . Hunter 1 | . . . . . . . . . . 1 . . . . . . . . . . . . Programmer 10 | . . . . . . 3 1 . . . 1 . . . . . . . . . 2 3 Z-Light 1 | . . . . . . . . . . . . . . . . . . . . 1 . . Packrat 2 | . . . . . . . . . . . . . 2 . . . . . . . . . Samaritan 3 | . . . . . . . . 1 . 1 . . 1 . . . . . . . . . Best Kill Streak 15 | . 4 2 1 7 3 12 3 2 . 3 4 1 . . 3 6 1 1 . 5 1 15 Combat Bots Only 13 | . 3 2 1 4 2 10 3 2 . 3 4 1 . . 3 5 . 1 . . 1 13 Max Kills in Single Turn 7 | . 2 1 1 3 2 2 1 1 . 1 1 1 1 . 1 4 1 1 . 4 1 7 Gunslinging . | . . . . . . . . . . . . . . . . . . . . . . . Exploded 6 | . 1 . . 2 . 2 . . . . 1 . . . 1 3 . . . . . 6 Melee 1 | . . . . . . . 1 . . . . . . . . . . . . . 1 . Uniques/NPCs Destroyed . | . . . . . . . . . . . . . . . . . . . . . . . Combat | -11 -10 -10 -9 -9 -9 -7 -7 -7 -7 -6 -6 -6 -6 -6 -5 -5 -5 -5 -5 -5 -4 -3 -------- Run | Jun Mat Min Mat Sto Rec Fac Low Low Dat Pro Fac Low Low Zio Pro Fac Ext Cet Arc Hub Fac Res Damage Taken 11279 | . 176 221 192 676 276 2676 689 244 . 469 1224 442 433 . 569 715 206 93 . 411 647 920 Core 1844 | . 19 17 92 80 66 370 147 52 . 97 342 40 34 . 130 197 . 17 . . 39 105 Absorbed by Shields 635 | . . . . . . 48 . . . . 10 . . . . . . . . . 387 190 Regen/Repaired (Parts) 2876 | . . . . . . 236 160 59 . . 687 21 . 197 263 102 414 157 78 25 278 199 Core Remaining (%) 62 | 100 . 85 . . 40 . . . . 4 . . . . 35 . . . . 78 96 . Volleys Fired 357 | . 18 11 7 42 18 68 15 8 . 21 35 29 9 . 18 14 1 3 . 3 14 23 Largest 2 | . 2 2 2 2 2 2 1 1 . 2 2 2 1 . 2 2 1 1 . 1 1 2 Hottest 161 | . 60 60 40 136 136 124 71 71 . 161 90 132 79 . 132 132 53 51 . 88 88 88 Shots Fired 491 | . 36 19 14 80 31 83 14 8 . 25 52 30 9 . 22 18 1 3 . 3 14 29 Gun 190 | . 36 19 14 . 7 15 5 8 . 4 33 7 . . 10 4 . 3 . 3 14 8 Cannon 220 | . . . . 77 24 26 9 . . 21 19 23 9 . 3 5 1 . . . . 3 Launcher 53 | . . . . 3 . 42 . . . . . . . . 8 . . . . . . . Special 28 | . . . . . . . . . . . . . . . 1 9 . . . . . 18 Kinetic 87 | . 18 8 14 . . . . . . . 15 18 . . 2 5 1 . . . . 6 Thermal 257 | . . . . 77 31 41 11 . . 21 37 12 9 . 11 4 . 3 . . . . Explosive 81 | . . . . 3 . 42 . . . . . . . . 9 9 . . . . . 18 Electromagnetic 44 | . 18 11 . . . . 3 8 . 4 . . . . . . . . . . . . Phasic 22 | . . . . . . . . . . . . . . . . . . . . 3 14 5 Robot Hit Streak 25 | . 8 10 7 23 25 7 6 5 . 8 12 13 19 . 9 5 3 2 . 3 10 13 Robot Miss Streak 7 | . 3 1 1 7 2 4 3 3 . 7 4 2 1 . 3 3 . 1 . . 2 3 Penetration Max . | . . . . . . . . . . . . . . . . . . . . . . . Secondary Targets 3 | . . . . . . . . . . . 3 . . . . . . . . . . . Max Gunslinging Chain 1 | . . . . . . . . . . . 1 . . . . . . . . . . . Shots Hit Robots 344 | . 23 16 12 48 22 48 19 8 . 12 30 18 9 . 15 11 4 2 . 5 18 24 Core Hits 262 | . 14 5 3 26 10 62 8 2 . 7 16 11 7 . 12 15 1 1 . 8 5 49 Critical Kills 1 | . . . . . . . . . . 1 . . . . . . . . . . . . Critical Parts Destroyed 2 | . . . . . . . 1 1 . . . . . . . . . . . . . . Critical Strikes 14 | . . . . . 1 . 1 1 . 1 1 1 . . 1 2 1 . . . . 4 Burn 1 | . . . . . 1 . . . . . . . . . . . . . . . . . Meltdown 1 | . . . . . . . . . . 1 . . . . . . . . . . . . Blast 2 | . . . . . . . . . . . 1 1 . . . . . . . . . . Smash 2 | . . . . . . . 1 1 . . . . . . . . . . . . . . Sever 7 | . . . . . . . . . . . . . . . 1 2 . . . . . 4 Impale 1 | . . . . . . . . . . . . . . . . . 1 . . . . . Melee Attacks 86 | . . . . . . 1 14 1 . . . 3 . 2 . 1 3 1 . 12 28 20 Impact 19 | . . . . . . 1 14 1 . . . 3 . . . . . . . . . . Slashing 2 | . . . . . . . . . . . . . . 2 . . . . . . . . Piercing 65 | . . . . . . . . . . . . . . . . 1 3 1 . 12 28 20 Sneak Attacks 4 | . . . . . . . . 1 . . . . . . . . 1 . . 1 . 1 Combat Hostiles . | . . . . . . . . . . . . . . . . . . . . . . . Follow-up Attacks . | . . . . . . . . . . . . . . . . . . . . . . . Damage Inflicted 17718 | . 417 195 94 1514 452 2432 512 260 . 445 594 461 230 . 1070 2059 183 50 . 1125 532 5093 Guns 2352 | . 317 195 94 . 105 184 82 198 . 94 249 53 . . 187 95 . 50 . 30 268 151 Cannons 3263 | . . . . 1045 347 292 151 . . 321 343 408 230 . 31 63 32 . . . . . Explosions 10217 | . 100 . . 460 . 1956 . . . 30 . . . . 821 1736 . . . 909 . 4205 Melee 1106 | . . . . . . . 279 62 . . . . . . . . 151 . . 186 264 164 Ramming 11 | . . . . 9 . . . . . . 2 . . . . . . . . . . . Kinetic 1047 | . 159 78 94 . . . . . . . 249 302 . . . 63 32 . . . . 70 Thermal 4021 | . 100 . . 1045 452 476 189 . . 351 343 159 230 . 218 408 . 50 . . . . Explosive 8865 | . . . . 460 . 1956 . . . . . . . . 821 1423 . . . . . 4205 Electromagnetic 1520 | . 158 117 . . . . 44 198 . 94 . . . . . . . . . 909 . . Impact 341 | . . . . . . . 279 62 . . . . . . . . . . . . . . Slashing 769 | . . . . . . . . . . . . . . . 31 165 . . . . . 573 Piercing 765 | . . . . . . . . . . . . . . . . . 151 . . 186 264 164 Phasic 379 | . . . . . . . . . . . . . . . . . . . . 30 268 81 Highest Corruption 17 | . . . . . . 2 3 3 3 3 5 . . . . . . . . . 17 2 Average Corruption 3 | . . . . . . 1 2 3 3 3 3 . . . . . . . . . 7 1 Corruption Purged 6 | . . . . . . . . . . . 6 . . . . . . . . . . . Corruption Blocked 6 | . . . . . . . . . . . . . . . . . 6 . . . . . Effects 47 | . . . . . . 5 11 9 1 5 9 . . . . . . . . . 7 . Message Errors 12 | . . . . . . 2 4 1 . 2 2 . . . . . . . . . 1 . Matter Fused 14 | . . . . . . 1 4 2 . 2 2 . . . . . . . . . 3 . Heat Flow Errors 6 | . . . . . . 1 . 1 . . 1 . . . . . . . . . 3 . Energy Discharges 2 | . . . . . . . . 1 . . 1 . . . . . . . . . . . Parts Rejected 1 | . . . . . . . . . . 1 . . . . . . . . . . . . Data Loss (minor) 5 | . . . . . . . 2 2 . . 1 . . . . . . . . . . . Data Loss (major) 3 | . . . . . . . . 1 1 . 1 . . . . . . . . . . . Misfires 1 | . . . . . . . . . . . 1 . . . . . . . . . . . Alerts 2 | . . . . . . 1 . 1 . . . . . . . . . . . . . . Weapon Failures 1 | . . . . . . . 1 . . . . . . . . . . . . . . . Overload Shots . | . . . . . . . . . . . . . . . . . . . . . . . Overflow Damage 557 | . 8 . . 23 . 20 65 62 . 30 7 . 30 . 2 174 2 . . 35 2 97 Projectiles 95 | . . . . 11 . 9 . . . 30 7 . 30 . . 6 2 . . . . . Explosions 325 | . 8 . . 12 . 11 . . . . . . . . 2 168 . . . 27 . 97 Melee 137 | . . . . . . . 65 62 . . . . . . . . . . . 8 2 . Knockbacks 4 | . . . . . . . . . . . 2 . . . . 1 1 . . . . . Impact . | . . . . . . . . . . . . . . . . . . . . . . . Kinetic 4 | . . . . . . . . . . . 2 . . . . 1 1 . . . . . Secondary . | . . . . . . . . . . . . . . . . . . . . . . . Self-Inflicted Damage 369 | . 33 . . . . 68 . . . . 1 . . . . 173 . . . 94 . . Shots 7 | . 1 . . . . 2 . . . . . . . . . 3 . . . 1 . . Rammed 3 | . . 1 . 1 . . . . . . 1 . . . . . . . . . . . Targets Rammed 4 | . . 1 . 2 . . . . . . 1 . . . . . . . . . . . Kicked . | . . . . . . . . . . . . . . . . . . . . . . . Crushed 1 | . . . . 1 . . . . . . . . . . . . . . . . . . Highest Temperature 422 | . 33 96 6 132 229 150 . 108 . 216 179 266 172 . 150 261 10 . . . 422 88 Average Temperature 70 | . 13 46 4 32 83 13 . 49 . 81 46 112 64 . 53 113 7 . . . 149 38 Received Heat Transfer 2618 | . 39 116 81 135 123 975 . 33 . 57 177 135 21 . 171 198 30 9 . 72 83 163 Effects 6 | . . . . . . . . . . . . . . . . 1 . . . . 5 . Shutdowns 1 | . . . . . . . . . . . . . . . . . . . . . 1 . Energy Bleed 2 | . . . . . . . . . . . . . . . . 1 . . . . 1 . Short Circuit 1 | . . . . . . . . . . . . . . . . . . . . . 1 . Damage (minor) 2 | . . . . . . . . . . . . . . . . . . . . . 2 . Siege Activations . | . . . . . . . . . . . . . . . . . . . . . . . Robots Corrupted 3 | . . . . . . . . 1 . . . . . . . . . . . 2 . . Combat Hostiles 1 | . . . . . . . . 1 . . . . . . . . . . . . . . Parts Fried 6 | . . . . . . . . 2 . . . . . . . . . . . 4 . . Impact Corruptions 8 | . . . . . . . 3 5 . . . . . . . . . . . . . . Robots Melted 2 | . . . . . . . . . . 2 . . . . . . . . . . . . Combat Hostiles 1 | . . . . . . . . . . 1 . . . . . . . . . . . . Parts Melted 14 | . . . . 3 3 1 . . . 3 3 . . . . . . . . . . 1 Heat Transferred 6297 | . 50 . . 1887 962 723 300 . . 550 853 148 . . 300 450 . 74 . . . . Parts Sabotaged . | . . . . . . . . . . . . . . . . . . . . . . . Parts Stolen . | . . . . . . . . . . . . . . . . . . . . . . . Parts Stripped . | . . . . . . . . . . . . . . . . . . . . . . . Power Chain Reactions 4 | . 1 . . . . . . . . 1 1 . . . . . . . . 1 . . Missiles Intercepted . | . . . . . . . . . . . . . . . . . . . . . . . Alert | -11 -10 -10 -9 -9 -9 -7 -7 -7 -7 -6 -6 -6 -6 -6 -5 -5 -5 -5 -5 -5 -4 -3 ------- Run | Jun Mat Min Mat Sto Rec Fac Low Low Dat Pro Fac Low Low Zio Pro Fac Ext Cet Arc Hub Fac Res Peak Influence 1368 | . 207 120 92 357 232 1079 . . . . 401 . . . . 1095 1153 774 313 984 734 1368 Initial 561 | . . 80 42 38 87 358 . . . . 106 . . . . 203 536 561 309 109 481 354 Average 393 | . 137 113 59 218 80 540 . . . . 250 . . . . 674 910 649 309 283 599 735 Maximum Alert Level 4 | . 1 . . 1 1 3 . . . . 2 . . . . 3 4 3 1 3 3 4 Low Security (%) 31 | 100 78 100 100 24 98 . . . . . 14 . . . . 1 . . . 58 . . Level 1 35 | . 21 . . 75 1 53 . . . . 84 . . . . 28 . . 100 14 . 19 Level 2 11 | . . . . . . 7 . . . . 1 . . . . 16 19 60 . 20 93 8 Level 3 19 | . . . . . . 38 . . . . . . . . . 53 59 40 . 6 6 70 Level 4 2 | . . . . . . . . . . . . . . . . . 21 . . . . 1 Level 5 . | . . . . . . . . . . . . . . . . . . . . . . . High Security . | . . . . . . . . . . . . . . . . . . . . . . . Max Security . | . . . . . . . . . . . . . . . . . . . . . . . Squads Dispatched 40 | . 1 . . 5 . 10 . . . . 9 . . . . 2 1 . . 3 4 5 Investigation 14 | . . . . 1 . 4 . . . . 3 . . . . 1 1 . . 2 1 1 Extermination 6 | . . . . . . 2 . . . . 2 . . . . . . . . . 1 1 Reinforcement 13 | . 1 . . 3 . 3 . . . . 1 . . . . 1 . . . . 2 2 Assault 2 | . . . . . . 1 . . . . . . . . . . . . . . . 1 Garrison 5 | . . . . 1 . . . . . . 3 . . . . . . . . 1 . . Intercept . | . . . . . . . . . . . . . . . . . . . . . . . Searches Triggered . | . . . . . . . . . . . . . . . . . . . . . . . Data Miner Redirects 5 | . . . . . . . . . . . 1 . . . . . 1 . . 1 1 1 Construction Impeded 2 | . . . . . . 1 . . . . . . . . . . . . . . . 1 Haulers Reinforced 1 | . . . . . . 1 . . . . . . . . . . . . . . . . Active Scanning Responses . | . . . . . . . . . . . . . . . . . . . . . . . Cargo Convoy Interrupts . | . . . . . . . . . . . . . . . . . . . . . . . Stealth | -11 -10 -10 -9 -9 -9 -7 -7 -7 -7 -6 -6 -6 -6 -6 -5 -5 -5 -5 -5 -5 -4 -3 --------- Run | Jun Mat Min Mat Sto Rec Fac Low Low Dat Pro Fac Low Low Zio Pro Fac Ext Cet Arc Hub Fac Res Distress Signals 16 | . . 1 . 2 . . . . . . 1 . . . 1 1 4 1 . 3 . 2 Communications Jammed 44 | . . . . . . . . . . . . . . . . . . . . . 30 14 Distress Signals 44 | . . . . . . . . . . . . . . . . . . . . . 30 14 Times Spotted 311 | . 10 4 1 24 4 55 7 11 . 10 25 7 6 . 12 13 23 15 3 14 20 47 Peak Tracking Total 16 | . 4 2 1 5 2 16 3 4 . 5 9 4 5 . 4 8 6 9 5 10 7 13 Tactical Retreats 41 | . . . . 1 . 6 . 4 . 2 8 2 3 . 2 2 1 1 . 2 4 3 Traps | -11 -10 -10 -9 -9 -9 -7 -7 -7 -7 -6 -6 -6 -6 -6 -5 -5 -5 -5 -5 -5 -4 -3 ------- Run | Jun Mat Min Mat Sto Rec Fac Low Low Dat Pro Fac Low Low Zio Pro Fac Ext Cet Arc Hub Fac Res Traps Triggered 13 | . . . . . . 2 . . . . 6 . . . . . 2 . . . 1 2 Indirectly . | . . . . . . . . . . . . . . . . . . . . . . . Trap Hack Attempts 63 | . . . . 63 . . . . . . . . . . . . . . . . . . Triggered . | . . . . . . . . . . . . . . . . . . . . . . . Disarmed . | . . . . . . . . . . . . . . . . . . . . . . . Reprogrammed 8 | . . . . 8 . . . . . . . . . . . . . . . . . . Reused . | . . . . . . . . . . . . . . . . . . . . . . . Traps Extracted 8 | . . . . 8 . . . . . . . . . . . . . . . . . . Installed . | . . . . . . . . . . . . . . . . . . . . . . . Triggered 2 | . . . . . . . 1 . . . . . 1 . . . . . . . . . Most Traps Carried 8 | . . . . 8 8 6 6 6 6 6 6 6 6 5 4 4 4 4 4 4 4 4 Machines | -11 -10 -10 -9 -9 -9 -7 -7 -7 -7 -6 -6 -6 -6 -6 -5 -5 -5 -5 -5 -5 -4 -3 ---------- Run | Jun Mat Min Mat Sto Rec Fac Low Low Dat Pro Fac Low Low Zio Pro Fac Ext Cet Arc Hub Fac Res Machines Disabled 25 | . 1 . . 3 . 2 . . . . 1 . . . . 8 1 . . 6 2 1 Max in Single Turn 4 | . 1 . . 1 . 2 . . . . . . . . . 4 . . . 3 1 . Garrison Access 6 | . . . . . . 2 . . . . 1 . . . . 1 . . . 1 1 . Network Hub 1 | . . . . . . . . . . . . . . . . . . . . 1 . . Energy Cycler 1 | . . . . . . . . . . . . . . . . . 1 . . . . . Machines Repaired . | . . . . . . . . . . . . . . . . . . . . . . . Machines Sabotaged . | . . . . . . . . . . . . . . . . . . . . . . . Overloaded Fab Kills . | . . . . . . . . . . . . . . . . . . . . . . . Hacking | -11 -10 -10 -9 -9 -9 -7 -7 -7 -7 -6 -6 -6 -6 -6 -5 -5 -5 -5 -5 -5 -4 -3 --------- Run | Jun Mat Min Mat Sto Rec Fac Low Low Dat Pro Fac Low Low Zio Pro Fac Ext Cet Arc Hub Fac Res Machines Accessed 59 | . 3 . 1 8 11 10 . . 4 . 12 1 . . . 1 2 . 1 1 3 1 Terminals 28 | . 3 . 1 8 4 6 . . . . 5 . . . . . 1 . . . . . Fabricators 6 | . . . . . . 1 . . . . 4 . . . . . . . . . 1 . Repair Stations 3 | . . . . . . 1 . . . . 1 . . . . . 1 . . . . . Recycling Units 7 | . . . . . 7 . . . . . . . . . . . . . . . . . Scanalyzers . | . . . . . . . . . . . . . . . . . . . . . . . Garrison Access 9 | . . . . . . 2 . . . . 2 . . . . 1 . . . 1 2 1 Total Hacks 169 | . 4 . 5 19 22 21 . . 31 . 25 1 . . . 1 2 . 25 3 8 2 Successful 108 | . 1 . 3 9 13 6 . . 31 . 13 1 . . . 1 1 . 25 1 3 . Failed 61 | . 3 . 2 10 9 15 . . . . 12 . . . . . 1 . . 2 5 2 Catastrophic 13 | . 1 . . 2 2 4 . . . . 3 . . . . . . . . . 1 . Database Lockouts . | . . . . . . . . . . . . . . . . . . . . . . . Manual 134 | . 4 . 5 16 20 14 . . . . 11 . . . . 6 14 . . 10 17 17 Terminals 68 | . 4 . 5 19 15 14 . . . . 10 . . . . . 1 . . . . . Fabricators 13 | . . . . . . 1 . . . . 10 . . . . . . . . . 2 . Repair Stations 4 | . . . . . . 2 . . . . 1 . . . . . 1 . . . . . Recycling Units 7 | . . . . . 7 . . . . . . . . . . . . . . . . . Scanalyzers . | . . . . . . . . . . . . . . . . . . . . . . . Garrison Access 20 | . . . . . . 4 . . . . 4 . . . . 1 . . . 3 6 2 Terminal Hacks 74 | . . . 1 6 5 2 . . 31 . 2 1 . . . . 1 . 25 . . . Record 36 | . . . . . . . . . 11 . . . . . . . . . 25 . . . Part Schematic 12 | . . . . . . . . . 12 . . . . . . . . . . . . . Robot Schematic 5 | . . . . . . . . . 5 . . . . . . . . . . . . . Prototype ID Bank 5 | . . . . . 2 . . . 3 . . . . . . . . . . . . . Open Door 5 | . . . . 3 . . . . . . . 1 . . . . 1 . . . . . Branch Access Points 3 | . . . 1 . . 1 . . . . 1 . . . . . . . . . . . Machine Index 1 | . . . . . . 1 . . . . . . . . . . . . . . . . Recycling Unit Index 1 | . . . . . 1 . . . . . . . . . . . . . . . . . Alert Level 2 | . . . . . 2 . . . . . . . . . . . . . . . . . Unreport Threat 1 | . . . . 1 . . . . . . . . . . . . . . . . . . Locate Traps 2 | . . . . 1 . . . . . . 1 . . . . . . . . . . . Reprogram Traps 1 | . . . . 1 . . . . . . . . . . . . . . . . . . Fabricator Hacks 7 | . . . . . . . . . . . 5 . . . . . . . . . 2 . Load Schematic 4 | . . . . . . . . . . . 3 . . . . . . . . . 1 . Build 3 | . . . . . . . . . . . 2 . . . . . . . . . 1 . Repair Station Hacks 1 | . . . . . . . . . . . 1 . . . . . . . . . . . Refit 1 | . . . . . . . . . . . 1 . . . . . . . . . . . Recycling Unit Hacks . | . . . . . . . . . . . . . . . . . . . . . . . Scanalyzer . | . . . . . . . . . . . . . . . . . . . . . . . Garrison Access Hacks 3 | . . . . . . 1 . . . . 1 . . . . . . . . . 1 . Seal Access 3 | . . . . . . 1 . . . . 1 . . . . . . . . . 1 . Unauthorized Hacks 23 | . 1 . 2 3 8 3 . . . . 4 . . . . 1 . . . 1 . . Terminals 10 | . 1 . 2 3 1 2 . . . . 1 . . . . . . . . . . . Assimilate 1 | . . . . 1 . . . . . . . . . . . . . . . . . . Botnet 7 | . . . 1 2 1 2 . . . . 1 . . . . . . . . . . . Operators 2 | . 1 . 1 . . . . . . . . . . . . . . . . . . . Fabricators 3 | . . . . . . . . . . . 3 . . . . . . . . . . . Liberate 1 | . . . . . . . . . . . 1 . . . . . . . . . . . Overload 1 | . . . . . . . . . . . 1 . . . . . . . . . . . Recompile 1 | . . . . . . . . . . . 1 . . . . . . . . . . . Repair Stations 1 | . . . . . . 1 . . . . . . . . . . . . . . . . Mechanics 1 | . . . . . . 1 . . . . . . . . . . . . . . . . Recycling Units 7 | . . . . . 7 . . . . . . . . . . . . . . . . . Tunnel 7 | . . . . . 7 . . . . . . . . . . . . . . . . . Scanalyzers . | . . . . . . . . . . . . . . . . . . . . . . . Garrison Access 2 | . . . . . . . . . . . . . . . . 1 . . . 1 . . Jam 2 | . . . . . . . . . . . . . . . . 1 . . . 1 . . Data Cores Recovered . | . . . . . . . . . . . . . . . . . . . . . . . Used . | . . . . . . . . . . . . . . . . . . . . . . . Hacking Detections 34 | . 2 . 1 6 4 10 . . . . 7 . . . . . 1 . . 1 1 1 Full Trace Events 4 | . . . . 1 . 2 . . . . 1 . . . . . . . . . . . Feedback Events . | . . . . . . . . . . . . . . . . . . . . . . . Feedback Blocked . | . . . . . . . . . . . . . . . . . . . . . . . Robot Schematics Acquired 5 | . . . . . . . . . 5 . . . . . . . . . . . . . Robots Built . | . . . . . . . . . . . . . . . . . . . . . . . Authchips . | . . . . . . . . . . . . . . . . . . . . . . . Time . | . . . . . . . . . . . . . . . . . . . . . . . Total Robot Build Rating . | . . . . . . . . . . . . . . . . . . . . . . . Part Schematics Acquired 36 | . . . . . . . . . 12 . . . . . . . . . . . 13 11 Parts Built 4 | . . . . . . . . . . . 2 . . . . . . . . . 2 . Authchips 3 | . . . . . . . . . . . 2 . . . . . . . . . 1 . Time 205 | . . . . . . . . . . . 152 . . . . . . . . . 53 . Total Part Build Rating 22 | . . . . . . . . . . . 10 . . . . . . . . . 12 . Parts Repaired . | . . . . . . . . . . . . . . . . . . . . . . . Time . | . . . . . . . . . . . . . . . . . . . . . . . Parts Recycled . | . . . . . . . . . . . . . . . . . . . . . . . Recycled Matter . | . . . . . . . . . . . . . . . . . . . . . . . Retrieved Matter . | . . . . . . . . . . . . . . . . . . . . . . . Retrieved Components . | . . . . . . . . . . . . . . . . . . . . . . . Parts Scanalyzed . | . . . . . . . . . . . . . . . . . . . . . . . Part Schematics Acquired . | . . . . . . . . . . . . . . . . . . . . . . . Parts Damaged . | . . . . . . . . . . . . . . . . . . . . . . . Bothacking | -11 -10 -10 -9 -9 -9 -7 -7 -7 -7 -6 -6 -6 -6 -6 -5 -5 -5 -5 -5 -5 -4 -3 ------------ Run | Jun Mat Min Mat Sto Rec Fac Low Low Dat Pro Fac Low Low Zio Pro Fac Ext Cet Arc Hub Fac Res Used RIF Installer . | . . . . . . . . . . . . . . . . . . . . . . . Robots Hacked . | . . . . . . . . . . . . . . . . . . . . . . . Non-combat . | . . . . . . . . . . . . . . . . . . . . . . . Combat . | . . . . . . . . . . . . . . . . . . . . . . . Robot Hacks Applied . | . . . . . . . . . . . . . . . . . . . . . . . Relay Couplers Released 3 | . . . . . . 1 . . . . . . . . . . . . . 2 . . Machine Destruction 3 | . . . . . . 1 . . . . . . . . . . . . . 2 . . Fabnet Peak Effective % . | . . . . . . . . . . . . . . . . . . . . . . . Robots Rewired 11 | . . . . . 4 . . . . . . . . . . . 7 . . . . . Allies Hacked 3 | . . . . . . 1 . . . . . . . . . . 1 . . . . 1 Hacks Repelled . | . . . . . . . . . . . . . . . . . . . . . . . Allies | -11 -10 -10 -9 -9 -9 -7 -7 -7 -7 -6 -6 -6 -6 -6 -5 -5 -5 -5 -5 -5 -4 -3 -------- Run | Jun Mat Min Mat Sto Rec Fac Low Low Dat Pro Fac Low Low Zio Pro Fac Ext Cet Arc Hub Fac Res Total Allies 62 | . . . . 11 4 . . . . 1 2 . . 4 . 5 21 1 . 5 5 3 Largest Group 19 | . . . . 11 4 4 . . . 1 2 . . 4 4 5 19 19 4 4 3 3 Highest-Rated Group 729 | . . . . 98 55 55 . . . 96 82 . . 160 160 312 729 729 129 295 256 256 Highest-Rated Ally 103 | . . . . 16 27 27 . . . 96 41 . . 42 42 70 85 85 39 85 103 103 Zionite Dispatches 15 | . . . . . . . . . . . . . . . . 2 4 . . 2 4 3 Heavy 3 | . . . . . . . . . . . . . . . . . 1 . . 1 1 . Light 2 | . . . . . . . . . . . . . . . . 1 . . . 1 . . Fire 2 | . . . . . . . . . . . . . . . . . 2 . . . . . Hacker 2 | . . . . . . . . . . . . . . . . 1 1 . . . . . Demo 1 | . . . . . . . . . . . . . . . . . . . . . 1 . Thermal Resupply 1 | . . . . . . . . . . . . . . . . . . . . . . 1 Kinetic Resupply 1 | . . . . . . . . . . . . . . . . . . . . . . 1 Heavy Resupply 1 | . . . . . . . . . . . . . . . . . . . . . 1 . Infowar Resupply 1 | . . . . . . . . . . . . . . . . . . . . . . 1 Hover Resupply 1 | . . . . . . . . . . . . . . . . . . . . . 1 . Total Orders 8 | . . . . . . . . . . . . . . . . . . . . . 2 6 STAY 3 | . . . . . . . . . . . . . . . . . . . . . . 3 DROP 5 | . . . . . . . . . . . . . . . . . . . . . 2 3 Ally Attacks 349 | . . . . 59 . 1 . . . 9 17 . . . 28 9 108 61 11 24 3 19 Total Damage 10246 | . . . . 552 . 13 . . . 318 536 . . . 652 141 3492 1504 206 1085 191 1556 Kills 82 | . . . . 9 . . . . . 2 3 . . . 5 2 26 14 . 10 2 9 Allies Corrupted 2 | . . . . . . . . . . . . . . . . . . . . 1 . 1 Allies Melted . | . . . . . . . . . . . . . . . . . . . . . . . Intel | -11 -10 -10 -9 -9 -9 -7 -7 -7 -7 -6 -6 -6 -6 -6 -5 -5 -5 -5 -5 -5 -4 -3 ------- Run | Jun Mat Min Mat Sto Rec Fac Low Low Dat Pro Fac Low Low Zio Pro Fac Ext Cet Arc Hub Fac Res Robot Analysis Total . | . . . . . . . . . . . . . . . . . . . . . . . Derelict Logs Recovered 6 | . . 1 . . . . 1 . . . . 1 . 2 1 . . . . . . . Drone Launches . | . . . . . . . . . . . . . . . . . . . . . . . Drone Recoveries . | . . . . . . . . . . . . . . . . . . . . . . . Zionite Intel Received 5 | . . . . . . . . . . . . . . . . . . . . 1 1 3 Emergency Access 1 | . . . . . . . . . . . . . . . . . . . . . . 1 Component Stockpiles 1 | . . . . . . . . . . . . . . . . . . . . . . 1 Component Schematics 1 | . . . . . . . . . . . . . . . . . . . . . 1 . Prototype Schematics 1 | . . . . . . . . . . . . . . . . . . . . . . 1 Active Terminals 1 | . . . . . . . . . . . . . . . . . . . . 1 . . Exploration | -11 -10 -10 -9 -9 -9 -7 -7 -7 -7 -6 -6 -6 -6 -6 -5 -5 -5 -5 -5 -5 -4 -3 ------------- Run | Jun Mat Min Mat Sto Rec Fac Low Low Dat Pro Fac Low Low Zio Pro Fac Ext Cet Arc Hub Fac Res Turns Passed 13004 | 70 363 292 216 1150 1337 1172 521 429 72 249 1525 625 208 1124 788 369 947 175 29 167 564 612 Spaces Moved 10718 | 41 181 149 109 512 745 806 440 552 83 266 1405 611 297 960 432 312 724 152 48 241 754 898 Core 7 | 7 . . . . . . . . . . . . . . . . . . . . . . Treads 1796 | 34 181 149 109 512 665 126 . . . . . . . . . . . . . . 20 . Legs . | . . . . . . . . . . . . . . . . . . . . . . . Wheels 218 | . . . . . 80 138 . . . . . . . . . . . . . . . . Hover 6295 | . . . . . . 54 . 21 . . 990 611 297 960 432 312 724 152 48 241 734 719 Flight 2402 | . . . . . . 488 440 531 83 266 415 . . . . . . . . . . 179 Fastest Speed 34 | 50 160 160 160 160 120 65 58 58 87 39 34 62 62 62 56 104 60 60 51 51 51 48 Average Speed 94 | 141 160 160 160 160 158 121 100 70 87 66 77 75 62 109 117 104 74 60 59 51 54 50 Slowest Speed 260 | 160 160 160 160 160 240 216 145 116 87 87 260 110 62 110 158 108 119 60 60 51 86 67 Overloaded Moves . | . . . . . . . . . . . . . . . . . . . . . . . Propulsion Burnouts . | . . . . . . . . . . . . . . . . . . . . . . . Robots Hopped 18 | . . . . . . 14 . . . . 1 . . . . . . 3 . . . . Cave-ins Triggered . | . . . . . . . . . . . . . . . . . . . . . . . Exploration Rate (%) 49 | 3 41 32 9 74 82 28 74 69 69 49 34 75 52 87 67 10 84 48 67 37 31 25 Regions Visited 22 Branch Regions 15 Pre-discovered Areas 11 | . . 1 . . 7 . . . 1 . . . . 2 . . . . . . . . Known Exits Taken 14 | . . . 1 . . 1 1 . . 1 1 1 1 1 1 1 1 1 1 1 . . Unknown Exits Taken 8 | 1 1 1 . 1 1 . . 1 1 . . . . . . . . . . . 1 . Scrap Searched 24 | . . . . . . . 2 12 . 1 . 3 1 3 2 . . . . . . . Spaces Dug 79 | . . . . . . 20 . . . . 7 3 . 2 21 1 . . . 5 11 9 Terrain Destroyed 779 | . 5 . . 17 . 183 . . . 18 8 7 . 2 100 171 . . . 167 12 89 Melee 32 | . . . . . . 1 . . . . . 3 . 2 . 1 . . . 5 11 9 Projectile 35 | . . . . . . . . . . 11 8 4 . . 1 5 . . . . 1 5 AOE 712 | . 5 . . 17 . 182 . . . 7 . . . . 99 165 . . . 162 . 75 Terrain Rammed . | . . . . . . . . . . . . . . . . . . . . . . . Walls Destroyed . | . . . . . . . . . . . . . . . . . . . . . . . Machines Disabled . | . . . . . . . . . . . . . . . . . . . . . . . Actions | -11 -10 -10 -9 -9 -9 -7 -7 -7 -7 -6 -6 -6 -6 -6 -5 -5 -5 -5 -5 -5 -4 -3 --------- Run | Jun Mat Min Mat Sto Rec Fac Low Low Dat Pro Fac Low Low Zio Pro Fac Ext Cet Arc Hub Fac Res Total 12941 | 49 219 183 139 760 875 894 482 580 82 313 1787 740 310 1030 685 334 1123 226 47 257 835 991 Wait 1164 | . 19 22 9 90 24 16 9 10 . 21 225 74 3 58 225 3 234 61 . 2 25 34 Move 10662 | 40 180 148 108 511 744 778 439 551 82 265 1402 610 296 959 431 311 723 146 47 240 753 898 Hop 16 | . . . . . . 13 . . . . 1 . . . . . . 2 . . . . Pick Up 62 | 1 2 . 7 8 11 3 2 3 . 1 8 1 1 6 1 1 1 . . . 4 1 Fast Attach 54 | 6 . . 4 10 1 7 . 1 . 2 8 1 . 1 . 1 1 6 . . 3 2 Attach 28 | . . 1 1 2 . 2 1 2 . . 6 2 . 1 2 1 . . . . 2 5 Detach 13 | . . . . 2 . . . 1 . . 3 4 . . 1 . . 1 . . . 1 Swap 56 | 2 . . . 15 1 4 . 2 . . 7 10 . . 5 2 1 1 . . 2 4 Drop 78 | . . . 3 15 16 2 2 1 . 3 12 6 1 3 2 . . 5 . . 4 3 Fire 357 | . 18 11 7 42 18 68 15 8 . 21 35 29 9 . 18 14 1 3 . 3 14 23 Melee 86 | . . . . . . 1 14 1 . . . 3 . 2 . 1 3 1 . 12 28 20 Ram 1 | . . . . . . . . . . . 1 . . . . . . . . . . . Kick . | . . . . . . . . . . . . . . . . . . . . . . . Crush 3 | . . 1 . 2 . . . . . . . . . . . . . . . . . . Escape Stasis 105 | . . . . . . . . . . . 79 . . . . . 26 . . . . . Rewire 193 | . . . . . 60 . . . . . . . . . . . 133 . . . . . Trap 63 | . . . . 63 . . . . . . . . . . . . . . . . . . Miscellaneous . | . . . . . . . . . . . . . . . . . . . . . . . Route ------- -11/Junkyard -10/Materials (discovered 2 exits: *Mat / [*Min]) -10/Mines -9/Materials (discovered 3 exits: Min / *Sto x2) -9/Storage -9/Recycling -7/Factory (discovered 2 exits: *Low x2) -7/Lower Caves -7/Lower Caves (discovered 2 exits: *Fac / *Dat) -7/Data Miner -6/Proximity Caves -6/Factory (discovered 5 exits: *Fac x3 / *Low x2) -6/Lower Caves -6/Lower Caves (discovered 2 exits: *Fac / *Zio) -6/Zion -5/Proximity Caves -5/Factory (discovered 2 exits: [*Upp] / *Ext) -5/Extension (discovered 3 exits: *Fac x2 / *Cet) -5/Cetus -5/Archives -5/Hub_04(d) -4/Factory -3/Research (discovered 2 exits: [*Res] / [*Arm]) History --------- Turn | Location | Event 4 | -11/Junkyard | Discovered new exit (range 16) 71 | -11/Junkyard | Entered Materials 271 | -10/Materials | Discovered new exit (range 10) 301 | -10/Materials | Build established: Mutant 412 | -10/Materials | Discovered new exit (range 10) 434 | -10/Materials | Entered Mines 441 | -10/Mines | Met a Derelict bent on vengeance 543 | -10/Mines | Learned Materials emergency access door positions 566 | -10/Mines | Assembled infested the area 566 | -10/Mines | Learned location of Storage (-9) 658 | -10/Mines | Discovered new exit (range 6) 726 | -10/Mines | Entered Materials 726 | -9/Materials | Evolved 2 slots: Utility x2 812 | -9/Materials | Discovered new exit (range 3) 920 | -9/Materials | Identified exit to Mines 920 | -9/Materials | Identified exit to Storage 942 | -9/Materials | Entered Storage 1268 | -9/Storage | Assisted by bots powering up and referring to "LRC-V3" 1574 | -9/Storage | Garrison activated, responded to threat 1773 | -9/Storage | Build established: Scavenger-Mutant 1921 | -9/Storage | Used back door to open Recycling access 1921 | -9/Storage | Discovered new exit (range 5) 2092 | -9/Storage | Entered Recycling 2116 | -9/Recycling | Found Scrap Engine 2165 | -9/Recycling | Core integrity fell below 50% 2577 | -9/Recycling | Build established: Mutant 2863 | -9/Recycling | Discovered new exit (range 5) 3429 | -9/Recycling | Entered Factory 3429 | -7/Factory | Accompanied by 4 allies 3429 | -7/Factory | Evolved 4 slots: Propulsion x1, Utility x3 4167 | -7/Factory | Destroyed 10 combat bots 4176 | -7/Factory | Build established: Construct 4279 | -7/Factory | Discovered new exit (range 12) 4480 | -7/Factory | Lost 3 parts (1p1n1u) 4512 | -7/Factory | Identified exit to Lower Caves 4598 | -7/Factory | Core integrity fell below 50% 4601 | -7/Factory | Entered Lower Caves 4649 | -7/Lower Caves | Lost 4 parts (1p2n1u) 4757 | -7/Lower Caves | Build established: Mutant 5002 | -7/Lower Caves | Spotted B-75 Beast 5089 | -7/Lower Caves | Learned Factory emergency access door positions 5113 | -7/Lower Caves | Discovered new exit (range 12) 5122 | -7/Lower Caves | Identified exit to Lower Caves 5122 | -7/Lower Caves | Entered another Lower Caves area 5142 | -7/Lower Caves | Spotted B-75 Beast 5158 | -7/Lower Caves | Attracted the attention of an 0b10 checkpoint 5180 | -7/Lower Caves | Build established: Construct 5193 | -7/Lower Caves | Discovered new exit (range 6) 5200 | -7/Lower Caves | Identified exit to Factory 5230 | -7/Lower Caves | Core integrity fell below 20% 5543 | -7/Lower Caves | Discovered new exit (range 11) 5551 | -7/Lower Caves | Entered Data Miner 5551 | -7/Data Miner | Discovered new exit (range 6) 5568 | -7/Data Miner | Met Data Miner 5586 | -7/Data Miner | Learned location of Section 7 (-3) 5586 | -7/Data Miner | Acquired the access code to Warlord's prototype stash 5600 | -7/Data Miner | Received God Mode back door access code from Data Miner 5623 | -7/Data Miner | Entered Proximity Caves 5710 | -6/Proximity Caves | Escorted by Enhanced Grunt 5810 | -6/Proximity Caves | Spotted B-75 Beast 5851 | -6/Proximity Caves | Discovered exit to Factory (range 7) 5872 | -6/Proximity Caves | Entered Factory 5872 | -6/Factory | Evolved 2 slots: Propulsion x2 5904 | -6/Factory | Discovered new exit (range 12) 6111 | -6/Factory | Incoming investigation squad redirected 6122 | -6/Factory | Build established: Mutant 6226 | -6/Factory | Fabricated Lgt. Regenerative Plating? 6228 | -6/Factory | Identified exit to Lower Caves 6572 | -6/Factory | Discovered new exit (range 5) 6574 | -6/Factory | Identified exit to Factory 7036 | -6/Factory | Discovered exit to Factory (range 10) 7039 | -6/Factory | Garrison activated, responded to threat 7194 | -6/Factory | Fabricated Lgt. Regenerative Plating? 7397 | -6/Factory | Entered Lower Caves 7512 | -6/Lower Caves | Attracted the attention of an 0b10 checkpoint 7605 | -6/Lower Caves | Encountered a Warlord checkpoint 7743 | -6/Lower Caves | Learned Factory emergency access door positions 7784 | -6/Lower Caves | Found Prototype Device 7872 | -6/Lower Caves | Build established: Construct 8018 | -6/Lower Caves | Discovered new exit (range 6) 8021 | -6/Lower Caves | Identified exit to Lower Caves 8022 | -6/Lower Caves | Entered another Lower Caves area 8031 | -6/Lower Caves | Discovered exit to Factory (range 3) 8152 | -6/Lower Caves | Spotted B-75 Beast 8220 | -6/Lower Caves | Discovered new exit (range 15) 8228 | -6/Lower Caves | Identified exit to Zion 8230 | -6/Lower Caves | Entered Zion 8309 | -6/Zion | Discovered new exit (range 9) 8516 | -6/Zion | Found CR-A16's Pointy Stick 8532 | -6/Zion | Learned location of Warlord (-5) 8732 | -6/Zion | Imprinted 8734 | -6/Zion | Declared Zion's savior 8883 | -6/Zion | Learned Factory stockpile data 9097 | -6/Zion | Found Prototype Special Weapon 9099 | -6/Zion | Found Prototype Special Weapon 9102 | -6/Zion | Found Prototype Special Weapon 9105 | -6/Zion | Found Prototype Special Weapon 9296 | -6/Zion | Identified exit to Proximity Caves 9354 | -6/Zion | Entered Proximity Caves 9354 | -5/Proximity Caves | Accompanied by 4 allies 9356 | -5/Proximity Caves | Core integrity fell below 50% 9491 | -5/Proximity Caves | Spotter reported a threat 9695 | -5/Proximity Caves | Spotted B-75 Beast 9719 | -5/Proximity Caves | Identified RU-N14's Throwing Claymores (x4) 9854 | -5/Proximity Caves | Learned 8 Factory zone layouts 9876 | -5/Proximity Caves | Lost 3 parts (1p1n1w) 10086 | -5/Proximity Caves | Discovered exit to Factory (range 18) 10142 | -5/Proximity Caves | Entered Factory 10142 | -5/Factory | Evolved 2 slots: Propulsion x1, Utility x1 10387 | -5/Factory | Zion Light squad teleported in 10423 | -5/Factory | Zion Hacker squad teleported in 10486 | -5/Factory | Build established: Mutant 10493 | -5/Factory | Discovered new exit (range 15) 10497 | -5/Factory | Discovered new exit (range 16) 10509 | -5/Factory | Identified exit to Extension 10511 | -5/Factory | Entered Extension 10511 | -5/Extension | Accompanied by 5 allies 10546 | -5/Extension | Energy Cycler disabled 10547 | -5/Extension | Rescued a captive Derelict 10547 | -5/Extension | Rescued a captive Derelict 10547 | -5/Extension | Rescued a captive Derelict 10547 | -5/Extension | Rescued a captive Derelict 10548 | -5/Extension | Rescued a captive Derelict 10550 | -5/Extension | Rescued a captive Derelict 10553 | -5/Extension | Rescued a captive Derelict 10553 | -5/Extension | Rescued a captive Derelict 10554 | -5/Extension | Rescued a captive Derelict 10556 | -5/Extension | Rescued a captive Derelict 10558 | -5/Extension | Rescued a captive Derelict 10559 | -5/Extension | Rescued a captive Derelict 10598 | -5/Extension | Zion Fire squad teleported in 10842 | -5/Extension | Zion Heavy squad teleported in 10889 | -5/Extension | Zion Hacker squad teleported in 10901 | -5/Extension | Spotted B-75 Beast 10908 | -5/Extension | Spotted B-75 Beast 10911 | -5/Extension | Discovered new exit (range 15) 10913 | -5/Extension | Extracted ID and sensor layout for unrecognized location from A7's data core 10918 | -5/Extension | Allies destroyed B-75 Beast 10927 | -5/Extension | Allies destroyed B-75 Beast 11009 | -5/Extension | Discovered new exit (range 16) 11010 | -5/Extension | Discovered new exit (range 15) 11055 | -5/Extension | Zion Fire squad teleported in 11109 | -5/Extension | Build established: Commander-Construct 11190 | -5/Extension | Incoming investigation squad redirected 11373 | -5/Extension | Identified exit to Cetus 11458 | -5/Extension | Entered Cetus 11458 | -5/Cetus | Accompanied by 19 allies 11470 | -5/Cetus | Spotted Cetus Guard 11471 | -5/Cetus | Spotted Cetus Guard 11472 | -5/Cetus | Spotted Cetus Guard 11475 | -5/Cetus | Spotted Cetus Guard 11485 | -5/Cetus | Allies destroyed Cetus Guard 11488 | -5/Cetus | Allies destroyed Cetus Guard 11490 | -5/Cetus | Allies destroyed Cetus Guard 11498 | -5/Cetus | Found Prototype Protection 11498 | -5/Cetus | Identified Zio. Weapon Casing 11526 | -5/Cetus | Found Prototype Protection 11526 | -5/Cetus | Identified Zio. Heavy Carapace 11595 | -5/Cetus | Discovered new exit (range 16) 11603 | -5/Cetus | Identified exit to Archives 11633 | -5/Cetus | Entered Archives 11633 | -5/Archives | Accompanied by 4 allies 11640 | -5/Archives | Met Zhirov 11646 | -5/Archives | Reinforcements dispatched to Archives 11646 | -5/Archives | Unable to access archive contents 11652 | -5/Archives | Read partially decrypted archive contents 11653 | -5/Archives | Discovered new exit (range 16) 11661 | -5/Archives | Identified exit to Hub_04(d) 11662 | -5/Archives | Entered Hub_04(d) 11710 | -5/Hub_04(d) | Incoming investigation squad redirected 11740 | -5/Hub_04(d) | Garrison activated, responded to threat 11766 | -5/Hub_04(d) | Spotted B-75 Beast 11783 | -5/Hub_04(d) | Zion Heavy squad teleported in 11809 | -5/Hub_04(d) | Discovered new exit (range 11) 11812 | -5/Hub_04(d) | Retrieved Zion intel report: Active Terminals 11813 | -5/Hub_04(d) | Zion Light squad teleported in 11818 | -5/Hub_04(d) | Network Hub disabled 11826 | -5/Hub_04(d) | Identified exit to Factory 11828 | -5/Hub_04(d) | Spotted Lightning 11828 | -5/Hub_04(d) | Spotted Lightning 11829 | -5/Hub_04(d) | Entered Factory 11829 | -4/Factory | Evolved 2 slots: Power x1, Utility x1 11907 | -4/Factory | Zion Hover Resupply teleported in 11910 | -4/Factory | Spotted B-86 Titan 11946 | -4/Factory | Build established: Construct 12009 | -4/Factory | Retrieved Zion intel report: Component Schematics 12010 | -4/Factory | Zion Heavy Resupply teleported in 12016 | -4/Factory | Incoming investigation squad redirected 12057 | -4/Factory | Spotted B-86 Titan 12112 | -4/Factory | Fabricated Remote Force Field? 12274 | -4/Factory | System corruption reached 10% 12334 | -4/Factory | Zion Heavy squad teleported in 12353 | -4/Factory | Zion Demo squad teleported in 12362 | -4/Factory | Discovered new exit (range 14) 12393 | -4/Factory | Entered Research 12393 | -3/Research | Accompanied by 3 allies 12393 | -3/Research | Evolved 2 slots: Propulsion x1, Weapon x1 12483 | -3/Research | Incoming investigation squad redirected 12515 | -3/Research | Spotted B-86 Titan 12524 | -3/Research | Allies destroyed B-86 Titan 12553 | -3/Research | Retrieved Zion intel report: Emergency Access 12558 | -3/Research | Discovered new exit (range 7) 12624 | -3/Research | Retrieved Zion intel report: Prototype Schematics 12625 | -3/Research | Zion Kinetic Resupply teleported in 12707 | -3/Research | Zion Infowar Resupply teleported in 12735 | -3/Research | Spotted B-86 Titan 12910 | -3/Research | Discovered new exit (range 11) 12914 | -3/Research | Retrieved Zion intel report: Component Stockpiles 12915 | -3/Research | Zion Thermal Resupply teleported in 12932 | -3/Research | First assault squad dispatched 12963 | -3/Research | Destroyed 7 combat bots 12980 | -3/Research | Lost 4 parts (1p3u) 13005 | -3/Research | Self-destructed Last Messages --------------- 12987_ Destroyed Imp. Antigrav System. 12987_ P-80 Master destroyed. 12989_ P-80 Master Imp. Antigrav System severed. 12989_ P-80 Master destroyed. 12989_ Destroyed Imp. Antigrav System. 12991_ Destroyed Gamma Rifle. 12991_ U-05 Engineer destroyed. 12993_ P-80 Master destroyed. 12997_ L-61 Swordsman destroyed. 12997_ S-43 Plague destroyed. 12997_ G-67 Veteran destroyed. 12997_ S-43 Plague destroyed. 12997_ G-67 Veteran destroyed. 12997_ W-44 Eye destroyed. 12997_ Critical hit (Burn: +50). 12999_ G-67 Veteran Flexi-carbon Leg severed. 13001_ The unstable cave ceiling collapses. 13001_ G-67 Veteran destroyed. 13002_ The unstable cave ceiling collapses. 13003_ G-67 Veteran destroyed. Map ----- +----------------------------------------------------+ | ?????????????????????????????????????????????????? | | ?????????????????????????????????????????????????? | | ????????????????????????????????+????????????????? | | ?????????????????????????????????????????????????? | | ?????????????????????????????????????????????????? | | ?????????????????????????????????????????????????? | | ?????????????????????????????????????????????????? | | ?????????????????????????????????????????????????? | | ?????????????????????????????????????????????????? | | ?????????????????????????????????????????????????? | | ?????????????????????????????????????????????????? | | ?????????????????????#######?????????????????????? | | ????????????????????? #?????????????????????? | | ????????????????????? #?????????????????????? | | ?????????????????????? #?????????????????????? | | ?????????????????????? ###???????????????????? | | ????????????#########?#u # ???????????????????? | | ????????????# # # ???????????????????? | | ????????????# !*! # # """" ??????????????? | | ????????????# !* + # """"???????????????? | | ????????????# *! # # """"???????????????? | | ????????????# # # """????????????????? | | ????????????# ?# # ?????????######?? | | ????????????# ?# #? = ??????????# ?? | | ????????????# = ??# #? ??????????# | | ????????????########### @ ###+####???????# """ | | ???????????? *%= #???????# """ | | ??????????? ! u ???????# """ | | ??????????? % # #????# | | ??????????? k ##????# | | ????????????############### #?????# ? | | ????????????????????# * #?????# ??? | | ????????????????????# !%=[ ######+##### | | ????????????????????? """ %%= | | ????????????????????? """ % % | | ?????????????????????? "S ? | | ????????????????????# ""??? # " | | ????????????????????? ??????##### ## """ | | ????????????????????????????????????# G | | +???????????????????????????????????# """ | | ??????????????????????????????????? " | | ?????????????????????????????????? | | ????????????????????????????????? | | ????????????????????????????????# | | ????????????????????????????????# ############ | | ????????????????????????????????# ???????????? | | ????????????????????????????????# ???????????? | | ???????????????????????????????? ???????????? | | ???????????????????????????????? ???????????? | | ?????????????????????????????????? #??????????? | +----------------------------------------------------+ Best States ------------- Heat Dissipation 72 Energy Generation 51 Energy Capacity 640 Matter Stores 300 Matter Capacity 300 Sight Range 16 Robot Scan Range 16 Terrain Scan Range 20 Terrain Scan Density 210 ECM Strength 2 Jamming Range 16 Cloak Strength 3 Additional Mass Support 9 Armor Coverage 600 Resistance: TH 10 Evasion (%) 66 Melee Accuracy 6 Recoil Reduction 5 Matter Filtering 30 Offensive Hacking 20 Authchip Count 6 Trap Extractor Capacity 4 Item Schematics ----------------- Combat Drone Bay | -7/Data Miner | Free Lgt. Regenerative Plating | -7/Data Miner | Free Cld. Aerolev Unit | -7/Data Miner | Free Exp. Weapon Shielding | -7/Data Miner | Free Force Rifle | -7/Data Miner | Free Imp. Cloaking Device | -7/Data Miner | Free Remote Force Field | -7/Data Miner | Free Plasma Rifle | -7/Data Miner | Free Phase Gun | -7/Data Miner | Free Hvy. Phase Cannon | -7/Data Miner | Free Antigrav System | -7/Data Miner | Free Recoil Nullifier | -7/Data Miner | Free Wave Gun | -4/Factory | Z-intel Field Propulsion Drive | -4/Factory | Z-intel Imp. System Shield | -4/Factory | Z-intel Adv. Melee Analysis Suite | -4/Factory | Z-intel Imp. Terrain Scan Processor | -4/Factory | Z-intel Force Booster | -4/Factory | Z-intel Hardcell Cannon | -4/Factory | Z-intel Wheel | -4/Factory | Z-intel Imp. Recalibrator | -4/Factory | Z-intel Antimatter Reactor | -4/Factory | Z-intel Imp. Gyrokinetic Inverter | -4/Factory | Z-intel Adv. Medium Treads | -4/Factory | Z-intel Weight Redist. System | -4/Factory | Z-intel Adv. Myomer Leg | -3/Research | Z-intel Hvy. Wave Gun | -3/Research | Z-intel Imp. Energy Well | -3/Research | Z-intel Tri-rail Accelerator | -3/Research | Z-intel Hvy. Neutron Cannon | -3/Research | Z-intel Hdn. Centrium Wheel | -3/Research | Z-intel Exp. Core Shielding | -3/Research | Z-intel Vibroblade | -3/Research | Z-intel Imp. Matter Compressor | -3/Research | Z-intel Imp. Matter Neutralizer | -3/Research | Z-intel Cld. Phase Cannon | -3/Research | Z-intel Robot Schematics ------------------ M-22 Extractor | -7/Data Miner | Free A-15 Conveyor | -7/Data Miner | Free R-10 Processor | -7/Data Miner | Free E-15 Imp | -7/Data Miner | Free Y-64 Sentinel | -7/Data Miner | Free Fabricated ------------ Lgt. Regenerative Plating | x1 | -6/Factory | Authchip Lgt. Regenerative Plating | x1 | -6/Factory | Authchip Remote Force Field | x2 | -4/Factory | Authchip Alien Tech Used ----------------- None Achievements -------------- None Challenges ------------ None Game ------ Seed IntegratedPortableRailgun Manual? 0 Play Time 02:28:12 Cumulative 454.0 hours Start 2023.04.14 @ 20:19:59 End 2023.04.15 @ 20:23:15 Sessions 3 Manual Loads 0 Difficulty Rogue Special Mode None Game No. 493 Rogue 484 Adventurer 8 Explorer 1 Win Type - Total 7 Types 4/1/2/0/0/0/0/0/0 Lore% 79 Gallery% 90 Achievement% 71 Wizard Run 0 Options --------- ASCII 0 Keyboard 0 Movement Numpad Keybinds 1 Fullscreen 2 Font 18/Terminus Map View 76x50 Tactical HUD 1 Map Filters NONE Filters NONE Steam 1 RUN: b700d9ea-e894-4858-83de-ebe2585faef8